[Event "CCT Chessable Masters D-III 2024"]
[Site "Online"]
[Date "2024.02.03"]
[Round "3"]
[White "Sarana, Alexey"]
[Black "Matlakov, Maxim"]
[Result "1-0"]
[ECO "E00"]
[WhiteElo "2695"]
[BlackElo "2662"]
[Annotator "ChessBase"]
[PlyCount "75"]
[EventDate "2024.01.12"]
[EventType "k.o."]
[EventCountry "NET"]
[SourceTitle "playchess.com"]
[Source "ChessBase"]
[SourceQuality "1"]
[TimeControl "600+2"]

1. d4 {[%emt 0:00:04]} Nf6 {[%emt 0:02:56]} 2. c4 {[%emt 0:00:03]} e6 {[%emt 0:00:02]} 3. Bg5 {[%emt 0:00:03]} Bb4+ {[%emt 0:00:23]} 4. Nd2 {[%emt 0:00:03]} h6 {[%emt 0:00:17]} 5. Bxf6 {[%emt 0:00:09]} Qxf6 {[%emt 0:00:03]} 6. a3 {[%emt 0:00:02]} Bxd2+ {[%emt 0:00:05]} 7. Qxd2 {[%emt 0:00:02]} d6 {[%emt 0:00:04]} 8. e3 {[%emt 0:00:03]} O-O {[%emt 0:00:04]} 9. Bd3 {[%emt 0:00:02]} e5 {[%emt 0:00:04]} 10. Ne2 {[%emt 0:00:04]} Re8 {[%emt 0:00:06]} 11. O-O {[%emt 0:00:04]} Nc6 {[%emt 0:00:10]} 12. d5 {[%emt 0:00:04]} Nb8 {[%emt 0:00:59]} 13. Ng3 {[%emt 0:00:35]} Nd7 {[%emt 0:00:33]} 14. Bc2 {[%emt 0:00:05]} Nf8 {[%emt 0:00:06]} 15. b4 {[%emt 0:00:11]} Qe7 {[%emt 0:00:04]} 16. Qc3 {[%emt 0:00:09]} g6 {[%emt 0:00:10]} 17. a4 {[%emt 0:00:41]} h5 {[%emt 0:00:03]} 18. Ne2 {[%emt 0:00:05]} a5 {[%emt 0:00:07]} 19. bxa5 {[%emt 0:00:04]} Nd7 {[%emt 0:00:04]} 20. Nc1 {[%emt 0:00:23]} h4 {[%emt 0:00:11]} 21. h3 {[%emt 0:00:07]} Qg5 {[%emt 0:00:07]} 22. Kh2 {[%emt 0:00:05]} e4 {[%emt 0:00:06]} 23. Ne2 {[%emt 0:00:10]} Nc5 {[%emt 0:00:04]} 24. Nd4 {[%emt 0:00:14]} Qe5+ {[%emt 0:00:11]} 25. Kh1 {[%emt 0:00:05]} Bd7 {[%emt 0:00:03]} 26. f4 {[%emt 0:00:29]} exf3 {[%emt 0:00:04]} 27. Rxf3 {[%emt 0:00:02]} Re7 {[%emt 0:00:11]} 28. Re1 {[%emt 0:00:05]} Rae8 {[%emt 0:00:04]} 29. Qd2 {[%emt 0:00:08]} Qg5 {[%emt 0:00:04]} 30. Rf4 {[%emt 0:01:26]} Qxf4 {[%emt 0:00:07]} 31. exf4 {[%emt 0:00:03]} Rxe1+ {[%emt 0:00:04]} 32. Kh2 {[%emt 0:00:03]} Rf1 {[%emt 0:00:05]} 33. Nf3 {[%emt 0:00:08]} Ra1 {[%emt 0:00:30]} 34. f5 {[%emt 0:00:25]} Ne4 {[%emt 0:00:24]} 35. Bxe4 {[%emt 0:00:17]} Rxe4 {[%emt 0:00:02]} 36. fxg6 {[%emt 0:00:03]} fxg6 {[%emt 0:00:07]} 37. Qg5 {[%emt 0:00:19]} Kh7 {[%emt 0:00:12]} 38. Qf6 {[%emt 0:00:07]} 1-0

[Event "CCT Chessable Masters D-III 2024"]
[Site "Online"]
[Date "2024.02.03"]
[Round "3"]
[White "Matlakov, Maxim"]
[Black "Sarana, Alexey"]
[Result "0-1"]
[ECO "E08"]
[WhiteElo "2662"]
[BlackElo "2695"]
[Annotator "ChessBase"]
[PlyCount "64"]
[EventDate "2024.01.12"]
[EventType "k.o."]
[EventCountry "NET"]
[SourceTitle "playchess.com"]
[Source "ChessBase"]
[SourceQuality "1"]
[TimeControl "600+2"]

1. d4 {[%emt 0:00:02]} Nf6 {[%emt 0:00:03]} 2. c4 {[%emt 0:00:02]} e6 {[%emt 0:00:00]} 3. Nf3 {[%emt 0:00:01]} d5 {[%emt 0:00:01]} 4. g3 {[%emt 0:00:01]} Bb4+ {[%emt 0:00:00]} 5. Bd2 {[%emt 0:00:02]} Be7 {[%emt 0:00:01]} 6. Bg2 {[%emt 0:00:03]} O-O {[%emt 0:00:00]} 7. O-O {[%emt 0:00:06]} c6 {[%emt 0:00:01]} 8. Qc2 {[%emt 0:00:02]} Nbd7 {[%emt 0:00:03]} 9. Bf4 {[%emt 0:00:04]} a5 {[%emt 0:00:22]} 10. Rd1 {[%emt 0:00:05]} Nh5 {[%emt 0:00:03]} 11. Bc1 {[%emt 0:00:07]} b5 {[%emt 0:00:01]} 12. Ne5 {[%emt 0:03:31]} Bb7 {[%emt 0:00:04]} 13. Nxd7 {[%emt 0:00:36]} Qxd7 {[%emt 0:00:00]} 14. c5 {[%emt 0:00:01]} g5 {[%emt 0:00:06]} 15. Nd2 {[%emt 0:00:34]} Bd8 {[%emt 0:00:17]} 16. Nf3 {[%emt 0:00:13]} f6 {[%emt 0:00:01]} 17. e4 {[%emt 0:00:03]} Qf7 {[%emt 0:01:20]} 18. Re1 {[%emt 0:00:16]} Bc7 {[%emt 0:01:23]} 19. exd5 {[%emt 0:00:13]} exd5 {[%emt 0:00:02]} 20. Bxg5 {[%emt 0:00:23]} fxg5 {[%emt 0:00:21]} 21. Nxg5 {[%emt 0:00:00]} Qf5 {[%emt 0:02:32]} 22. Qxf5 {[%emt 0:00:02]} Rxf5 {[%emt 0:00:01]} 23. f4 {[%emt 0:00:00]} Bd8 {[%emt 0:00:15]} 24. Bh3 {[%emt 0:00:32]} Rf8 {[%emt 0:00:02]} 25. Nf3 {[%emt 0:00:37]} Bc8 {[%emt 0:00:09]} 26. Be6+ {[%emt 0:00:21]} Kg7 {[%emt 0:00:29]} 27. Bxc8 {[%emt 0:00:39]} Rxc8 {[%emt 0:00:02]} 28. Re5 {[%emt 0:00:01]} Nf6 {[%emt 0:00:02]} 29. Ng5 {[%emt 0:00:03]} Nd7 {[%emt 0:00:28]} 30. Re6 {[%emt 0:01:06]} Bxg5 {[%emt 0:00:01]} 31. fxg5 {[%emt 0:00:01]} Rfe8 {[%emt 0:00:15]} 32. Rae1 {[%emt 0:00:02]} Kf7 {[%emt 0:00:06]} 0-1

[Event "CCT Chessable Masters D-III 2024"]
[Site "Online"]
[Date "2024.02.03"]
[Round "3"]
[White "Matlakov, Maxim"]
[Black "Sarana, Alexey"]
[Result "1/2-1/2"]
[ECO "E08"]
[WhiteElo "2662"]
[BlackElo "2695"]
[Annotator "ChessBase"]
[PlyCount "80"]
[EventDate "2024.01.12"]
[EventType "k.o."]
[EventCountry "NET"]
[SourceTitle "playchess.com"]
[Source "ChessBase"]
[SourceQuality "1"]
[TimeControl "600+2"]

1. d4 {[%emt 0:00:04]} Nf6 {[%emt 0:00:05]} 2. c4 {[%emt 0:00:01]} e6 {[%emt 0:00:01]} 3. Nf3 {[%emt 0:00:02]} d5 {[%emt 0:00:00]} 4. g3 {[%emt 0:00:01]} Bb4+ {[%emt 0:00:01]} 5. Bd2 {[%emt 0:00:03]} Be7 {[%emt 0:00:00]} 6. Bg2 {[%emt 0:00:02]} O-O {[%emt 0:00:02]} 7. O-O {[%emt 0:00:04]} c6 {[%emt 0:00:01]} 8. Qc2 {[%emt 0:00:02]} Nbd7 {[%emt 0:00:01]} 9. Bf4 {[%emt 0:00:02]} a5 {[%emt 0:00:02]} 10. Rd1 {[%emt 0:00:07]} Nh5 {[%emt 0:00:01]} 11. Bc1 {[%emt 0:00:02]} b5 {[%emt 0:00:00]} 12. Ne5 {[%emt 0:00:02]} Bb7 {[%emt 0:00:02]} 13. Nxd7 {[%emt 0:00:02]} Qxd7 {[%emt 0:00:00]} 14. c5 {[%emt 0:00:00]} g5 {[%emt 0:00:00]} 15. Nd2 {[%emt 0:00:02]} Bd8 {[%emt 0:00:03]} 16. Nf3 {[%emt 0:00:06]} f6 {[%emt 0:00:01]} 17. e4 {[%emt 0:00:02]} Qf7 {[%emt 0:00:02]} 18. Re1 {[%emt 0:00:08]} Bc7 {[%emt 0:00:06]} 19. h3 {[%emt 0:00:21]} Qg6 {[%emt 0:01:32]} 20. Bd2 {[%emt 0:00:04]} Rae8 {[%emt 0:00:16]} 21. Rac1 {[%emt 0:00:07]} Ng7 {[%emt 0:01:21]} 22. a3 {[%emt 0:02:51]} h6 {[%emt 0:00:15]} 23. b4 {[%emt 0:00:05]} a4 {[%emt 0:00:05]} 24. Re2 {[%emt 0:01:27]} Bc8 {[%emt 0:00:03]} 25. Rce1 {[%emt 0:00:18]} Bd7 {[%emt 0:00:01]} 26. Qd1 {[%emt 0:00:09]} Bd8 {[%emt 0:01:05]} 27. Re3 {[%emt 0:00:04]} Bc7 {[%emt 0:00:08]} 28. Bf1 {[%emt 0:00:03]} f5 {[%emt 0:00:35]} 29. exd5 {[%emt 0:00:10]} exd5 {[%emt 0:00:01]} 30. Ne5 {[%emt 0:00:15]} Bxe5 {[%emt 0:00:02]} 31. Rxe5 {[%emt 0:00:00]} Rxe5 {[%emt 0:00:01]} 32. Rxe5 {[%emt 0:00:01]} Re8 {[%emt 0:00:01]} 33. Qe1 {[%emt 0:00:13]} Qf6 {[%emt 0:00:13]} 34. Bd3 {[%emt 0:00:44]} Rxe5 {[%emt 0:00:06]} 35. dxe5 {[%emt 0:00:04]} Qf7 {[%emt 0:00:07]} 36. f4 {[%emt 0:00:16]} Qh5 {[%emt 0:00:21]} 37. Kg2 {[%emt 0:00:24]} Be6 {[%emt 0:01:00]} 38. Qe2 {[%emt 0:00:08]} g4 {[%emt 0:00:48]} 39. h4 {[%emt 0:00:07]} Qe8 {[%emt 0:00:29]} 40. Qf2 {[%emt 0:00:21]} Qd7 {[%emt 0:00:04]} 1/2-1/2

[Event "CCT Chessable Masters D-III 2024"]
[Site "Online"]
[Date "2024.02.03"]
[Round "3"]
[White "Paravyan, David"]
[Black "youngKID"]
[Result "1-0"]
[ECO "C67"]
[WhiteElo "2612"]
[BlackElo "2588"]
[Annotator "ChessBase"]
[PlyCount "145"]
[EventDate "2024.01.12"]
[EventType "k.o."]
[EventCountry "NET"]
[SourceTitle "playchess.com"]
[Source "ChessBase"]
[SourceQuality "1"]
[TimeControl "600+2"]

1. e4 {[%emt 0:00:04]} e5 {[%emt 0:00:04]} 2. Nf3 {[%emt 0:00:01]} Nc6 {[%emt 0:00:01]} 3. Bb5 {[%emt 0:00:01]} Nf6 {[%emt 0:00:01]} 4. O-O {[%emt 0:00:14]} Nxe4 {[%emt 0:00:01]} 5. Re1 {[%emt 0:00:01]} Nd6 {[%emt 0:00:01]} 6. Nxe5 {[%emt 0:00:00]} Be7 {[%emt 0:00:01]} 7. Bf1 {[%emt 0:00:01]} Nxe5 {[%emt 0:00:01]} 8. Rxe5 {[%emt 0:00:01]} O-O {[%emt 0:00:00]} 9. d4 {[%emt 0:00:09]} Bf6 {[%emt 0:00:01]} 10. Re2 {[%emt 0:00:12]} Nf5 {[%emt 0:00:46]} 11. c3 {[%emt 0:00:02]} d5 {[%emt 0:00:02]} 12. Nd2 {[%emt 0:00:04]} Nd6 {[%emt 0:00:36]} 13. Re1 {[%emt 0:00:09]} Bf5 {[%emt 0:00:12]} 14. Nf3 {[%emt 0:00:02]} Re8 {[%emt 0:00:24]} 15. Bf4 {[%emt 0:00:01]} Rxe1 {[%emt 0:00:57]} 16. Qxe1 {[%emt 0:00:00]} Qe7 {[%emt 0:00:11]} 17. Be5 {[%emt 0:00:48]} Re8 {[%emt 0:01:16]} 18. Bxd6 {[%emt 0:00:08]} cxd6 {[%emt 0:00:00]} 19. Bb5 {[%emt 0:00:16]} Qxe1+ {[%emt 0:00:36]} 20. Nxe1 {[%emt 0:00:28]} Re7 {[%emt 0:00:27]} 21. Bd3 {[%emt 0:00:08]} Bd7 {[%emt 0:00:01]} 22. Nc2 {[%emt 0:00:05]} h5 {[%emt 0:01:26]} 23. Ne3 {[%emt 0:00:17]} Bc6 {[%emt 0:00:01]} 24. Be2 {[%emt 0:01:18]} Bg5 {[%emt 0:00:10]} 25. Bxh5 {[%emt 0:00:01]} Bxe3 {[%emt 0:00:01]} 26. fxe3 {[%emt 0:00:01]} Rxe3 {[%emt 0:00:00]} 27. Kf2 {[%emt 0:00:00]} Re6 {[%emt 0:00:22]} 28. Bf3 {[%emt 0:00:04]} g5 {[%emt 0:00:54]} 29. a4 {[%emt 0:00:15]} f5 {[%emt 0:00:36]} 30. h3 {[%emt 0:00:12]} Re7 {[%emt 0:00:30]} 31. b4 {[%emt 0:00:03]} a6 {[%emt 0:00:24]} 32. Be2 {[%emt 0:00:25]} Rc7 {[%emt 0:00:29]} 33. b5 {[%emt 0:01:32]} axb5 {[%emt 0:00:00]} 34. axb5 {[%emt 0:00:00]} Bd7 {[%emt 0:00:01]} 35. Ra7 {[%emt 0:00:08]} Bc8 {[%emt 0:00:04]} 36. Bf3 {[%emt 0:00:33]} Rxc3 {[%emt 0:00:13]} 37. Bxd5+ {[%emt 0:00:01]} Kg7 {[%emt 0:00:00]} 38. b6 {[%emt 0:00:10]} Rc2+ {[%emt 0:00:04]} 39. Kg1 {[%emt 0:00:07]} Kf6 {[%emt 0:00:09]} 40. Bxb7 {[%emt 0:00:08]} Bxb7 {[%emt 0:00:00]} 41. Rxb7 {[%emt 0:00:00]} Rb2 {[%emt 0:00:01]} 42. Rb8 {[%emt 0:00:04]} Kg7 {[%emt 0:00:05]} 43. d5 {[%emt 0:00:14]} g4 {[%emt 0:00:08]} 44. hxg4 {[%emt 0:00:02]} fxg4 {[%emt 0:00:00]} 45. g3 {[%emt 0:00:16]} Kf6 {[%emt 0:00:10]} 46. b7 {[%emt 0:00:05]} Kg7 {[%emt 0:00:00]} 47. Kf1 {[%emt 0:00:00]} Kh7 {[%emt 0:00:06]} 48. Ke1 {[%emt 0:00:01]} Kg7 {[%emt 0:00:00]} 49. Kd1 {[%emt 0:00:00]} Kh7 {[%emt 0:00:00]} 50. Kc1 {[%emt 0:00:00]} Rb5 {[%emt 0:00:03]} 51. Kc2 {[%emt 0:00:03]} Kg7 {[%emt 0:00:01]} 52. Kc3 {[%emt 0:00:01]} Kh7 {[%emt 0:00:02]} 53. Kc4 {[%emt 0:00:01]} Rb1 {[%emt 0:00:01]} 54. Kd4 {[%emt 0:00:02]} Rb4+ {[%emt 0:00:02]} 55. Kc3 {[%emt 0:00:03]} Rb5 {[%emt 0:00:02]} 56. Kc4 {[%emt 0:00:15]} Rb1 {[%emt 0:00:02]} 57. Rd8 {[%emt 0:00:24]} Rxb7 {[%emt 0:00:01]} 58. Rxd6 {[%emt 0:00:00]} Ra7 {[%emt 0:00:05]} 59. Rb6 {[%emt 0:00:11]} Kg7 {[%emt 0:00:03]} 60. Rb3 {[%emt 0:00:36]} Kf6 {[%emt 0:00:01]} 61. Re3 {[%emt 0:00:03]} Rc7+ {[%emt 0:00:03]} 62. Kb5 {[%emt 0:00:01]} Rc1 {[%emt 0:00:04]} 63. d6 {[%emt 0:00:00]} Rd1 {[%emt 0:00:02]} 64. Kc6 {[%emt 0:00:01]} Rc1+ {[%emt 0:00:00]} 65. Kb7 {[%emt 0:00:01]} Rb1+ {[%emt 0:00:01]} 66. Kc7 {[%emt 0:00:00]} Rc1+ {[%emt 0:00:02]} 67. Kd8 {[%emt 0:00:01]} Rc4 {[%emt 0:00:03]} 68. d7 {[%emt 0:00:01]} Kf7 {[%emt 0:00:02]} 69. Rd3 {[%emt 0:00:12]} Kf8 {[%emt 0:00:04]} 70. Ra3 {[%emt 0:00:17]} Kf7 {[%emt 0:00:02]} 71. Ra7 {[%emt 0:00:01]} Rc3 {[%emt 0:00:01]} 72. Rc7 {[%emt 0:00:00]} Rxg3 {[%emt 0:00:04]} 73. Kc8 {[%emt 0:00:01]} 1-0

[Event "CCT Chessable Masters D-III 2024"]
[Site "Online"]
[Date "2024.02.03"]
[Round "3"]
[White "Safarli, Eltaj"]
[Black "Indjic, Aleksandar"]
[Result "1-0"]
[ECO "C42"]
[WhiteElo "2604"]
[BlackElo "2595"]
[Annotator "ChessBase"]
[PlyCount "77"]
[EventDate "2024.01.12"]
[EventType "k.o."]
[EventCountry "NET"]
[SourceTitle "playchess.com"]
[Source "ChessBase"]
[SourceQuality "1"]
[TimeControl "600+2"]

1. e4 {[%emt 0:00:03]} e5 {[%emt 0:00:03]} 2. Nf3 {[%emt 0:00:01]} Nf6 {[%emt 0:00:00]} 3. Nxe5 {[%emt 0:00:07]} d6 {[%emt 0:00:01]} 4. Nf3 {[%emt 0:00:01]} Nxe4 {[%emt 0:00:01]} 5. d4 {[%emt 0:00:02]} d5 {[%emt 0:00:01]} 6. Bd3 {[%emt 0:00:01]} Bd6 {[%emt 0:00:01]} 7. O-O {[%emt 0:00:02]} O-O {[%emt 0:00:02]} 8. c4 {[%emt 0:00:11]} c6 {[%emt 0:00:00]} 9. Nc3 {[%emt 0:00:02]} Nxc3 {[%emt 0:00:01]} 10. bxc3 {[%emt 0:00:00]} dxc4 {[%emt 0:00:01]} 11. Bxc4 {[%emt 0:00:01]} Bg4 {[%emt 0:00:03]} 12. h3 {[%emt 0:00:06]} Bh5 {[%emt 0:00:01]} 13. g4 {[%emt 0:00:04]} Bg6 {[%emt 0:00:00]} 14. Ne5 {[%emt 0:00:01]} b5 {[%emt 0:00:02]} 15. Bb3 {[%emt 0:00:09]} Nd7 {[%emt 0:00:01]} 16. Nxg6 {[%emt 0:00:28]} hxg6 {[%emt 0:00:03]} 17. Qf3 {[%emt 0:00:01]} Qc7 {[%emt 0:00:09]} 18. Re1 {[%emt 0:00:25]} c5 {[%emt 0:00:02]} 19. Bxf7+ {[%emt 0:00:11]} Kh8 {[%emt 0:00:26]} 20. Qg2 {[%emt 0:00:59]} cxd4 {[%emt 0:00:09]} 21. cxd4 {[%emt 0:00:07]} Bb4 {[%emt 0:00:01]} 22. Rd1 {[%emt 0:00:47]} Bc3 {[%emt 0:00:05]} 23. Rb1 {[%emt 0:00:04]} b4 {[%emt 0:00:03]} 24. Bxg6 {[%emt 0:00:11]} Qd6 {[%emt 0:00:01]} 25. Bf5 {[%emt 0:00:27]} g6 {[%emt 0:00:05]} 26. Bxd7 {[%emt 0:00:17]} Qxd7 {[%emt 0:00:00]} 27. Bf4 {[%emt 0:00:01]} Rae8 {[%emt 0:00:33]} 28. Be5+ {[%emt 0:00:05]} Kg8 {[%emt 0:00:01]} 29. a3 {[%emt 0:00:22]} a5 {[%emt 0:00:02]} 30. axb4 {[%emt 0:00:01]} axb4 {[%emt 0:00:00]} 31. Qg3 {[%emt 0:00:10]} Rf7 {[%emt 0:00:27]} 32. Rd3 {[%emt 0:00:26]} Ref8 {[%emt 0:00:02]} 33. Qh4 {[%emt 0:00:27]} Rh7 {[%emt 0:00:23]} 34. Qg5 {[%emt 0:00:02]} Qe6 {[%emt 0:00:00]} 35. f4 {[%emt 0:00:13]} Qa6 {[%emt 0:00:04]} 36. f5 {[%emt 0:00:32]} Re8 {[%emt 0:02:47]} 37. fxg6 {[%emt 0:00:26]} Rd7 {[%emt 0:00:02]} 38. Rxc3 {[%emt 0:00:57]} bxc3 {[%emt 0:00:04]} 39. Qh6 {[%emt 0:00:01]} 1-0

[Event "CCT Chessable Masters D-III 2024"]
[Site "Online"]
[Date "2024.02.03"]
[Round "3"]
[White "Indjic, Aleksandar"]
[Black "Safarli, Eltaj"]
[Result "0-1"]
[ECO "A48"]
[WhiteElo "2595"]
[BlackElo "2604"]
[Annotator "ChessBase"]
[PlyCount "98"]
[EventDate "2024.01.12"]
[EventType "k.o."]
[EventCountry "NET"]
[SourceTitle "playchess.com"]
[Source "ChessBase"]
[SourceQuality "1"]
[TimeControl "600+2"]

1. d4 {[%emt 0:00:04]} Nf6 {[%emt 0:00:04]} 2. Bg5 {[%emt 0:00:02]} g6 {[%emt 0:00:35]} 3. Nf3 {[%emt 0:00:01]} Bg7 {[%emt 0:00:01]} 4. Nbd2 {[%emt 0:00:01]} O-O {[%emt 0:00:02]} 5. c3 {[%emt 0:00:01]} d6 {[%emt 0:00:05]} 6. e4 {[%emt 0:00:01]} c5 {[%emt 0:00:07]} 7. d5 {[%emt 0:00:01]} e6 {[%emt 0:00:25]} 8. Bc4 {[%emt 0:00:03]} h6 {[%emt 0:01:04]} 9. Bxf6 {[%emt 0:00:03]} Qxf6 {[%emt 0:00:01]} 10. dxe6 {[%emt 0:00:02]} Bxe6 {[%emt 0:00:01]} 11. Bxe6 {[%emt 0:00:04]} Qxe6 {[%emt 0:00:01]} 12. O-O {[%emt 0:00:02]} Nc6 {[%emt 0:00:14]} 13. Re1 {[%emt 0:00:01]} b5 {[%emt 0:00:21]} 14. Qc2 {[%emt 0:00:11]} Rab8 {[%emt 0:00:28]} 15. Nf1 {[%emt 0:00:02]} Rfe8 {[%emt 0:00:25]} 16. N3d2 {[%emt 0:00:08]} d5 {[%emt 0:00:36]} 17. exd5 {[%emt 0:00:04]} Qxd5 {[%emt 0:00:00]} 18. Rxe8+ {[%emt 0:00:13]} Rxe8 {[%emt 0:00:02]} 19. Ne3 {[%emt 0:00:00]} Qe6 {[%emt 0:00:27]} 20. a4 {[%emt 0:00:05]} b4 {[%emt 0:00:14]} 21. Ndc4 {[%emt 0:00:06]} bxc3 {[%emt 0:00:01]} 22. bxc3 {[%emt 0:00:02]} Ne5 {[%emt 0:00:18]} 23. Nxe5 {[%emt 0:00:05]} Bxe5 {[%emt 0:00:09]} 24. g3 {[%emt 0:00:12]} h5 {[%emt 0:00:09]} 25. Qd3 {[%emt 0:00:18]} h4 {[%emt 0:00:14]} 26. Nd5 {[%emt 0:00:16]} Bb8 {[%emt 0:00:49]} 27. c4 {[%emt 0:00:40]} h3 {[%emt 0:00:10]} 28. Kf1 {[%emt 0:00:11]} Kg7 {[%emt 0:00:08]} 29. Rb1 {[%emt 0:00:14]} Bd6 {[%emt 0:00:39]} 30. f4 {[%emt 0:00:13]} Qe4 {[%emt 0:00:46]} 31. Qxe4 {[%emt 0:00:03]} Rxe4 {[%emt 0:00:00]} 32. Rc1 {[%emt 0:00:00]} g5 {[%emt 0:00:29]} 33. fxg5 {[%emt 0:00:07]} Kg6 {[%emt 0:00:02]} 34. Kf2 {[%emt 0:00:01]} Kxg5 {[%emt 0:00:03]} 35. Kf3 {[%emt 0:00:00]} f5 {[%emt 0:00:03]} 36. Rc2 {[%emt 0:00:21]} Re1 {[%emt 0:00:05]} 37. Rb2 {[%emt 0:02:11]} Be5 {[%emt 0:00:10]} 38. Rb7 {[%emt 0:00:06]} Bd4 {[%emt 0:00:02]} 39. Rb8 {[%emt 0:01:20]} Rf1+ {[%emt 0:00:11]} 40. Ke2 {[%emt 0:00:01]} Rf2+ {[%emt 0:00:01]} 41. Kd3 {[%emt 0:00:00]} Rxh2 {[%emt 0:00:01]} 42. Rg8+ {[%emt 0:00:02]} Kh6 {[%emt 0:00:02]} 43. Nf4 {[%emt 0:00:10]} Be5 {[%emt 0:00:30]} 44. Rg6+ {[%emt 0:00:03]} Kh7 {[%emt 0:00:01]} 45. Rg5 {[%emt 0:00:02]} Bxf4 {[%emt 0:00:04]} 46. gxf4 {[%emt 0:00:00]} Rh1 {[%emt 0:00:02]} 47. Rxf5 {[%emt 0:00:05]} h2 {[%emt 0:00:05]} 48. Rh5+ {[%emt 0:00:05]} Kg6 {[%emt 0:00:04]} 49. Rh4 {[%emt 0:00:03]} Rd1+ {[%emt 0:00:02]} 0-1

[Event "CCT Chessable Masters D-III 2024"]
[Site "Online"]
[Date "2024.02.03"]
[Round "3"]
[White "youngKID"]
[Black "Paravyan, David"]
[Result "1/2-1/2"]
[ECO "C43"]
[WhiteElo "2581"]
[BlackElo "2612"]
[Annotator "ChessBase"]
[PlyCount "119"]
[EventDate "2024.01.12"]
[EventType "k.o."]
[EventCountry "NET"]
[SourceTitle "playchess.com"]
[Source "ChessBase"]
[SourceQuality "1"]
[TimeControl "600+2"]

1. e4 {[%emt 0:00:03]} e5 {[%emt 0:00:03]} 2. Nf3 {[%emt 0:00:01]} Nf6 {[%emt 0:00:01]} 3. d4 {[%emt 0:00:01]} Nxe4 {[%emt 0:00:01]} 4. dxe5 {[%emt 0:00:01]} Bc5 {[%emt 0:00:05]} 5. Qd5 {[%emt 0:00:19]} Bxf2+ {[%emt 0:00:08]} 6. Ke2 {[%emt 0:00:00]} f5 {[%emt 0:00:00]} 7. Nc3 {[%emt 0:00:01]} c6 {[%emt 0:00:03]} 8. Nxe4 {[%emt 0:00:01]} cxd5 {[%emt 0:00:01]} 9. Nd6+ {[%emt 0:00:01]} Kf8 {[%emt 0:00:04]} 10. Kxf2 {[%emt 0:00:01]} Nc6 {[%emt 0:00:46]} 11. Be3 {[%emt 0:00:02]} d4 {[%emt 0:01:11]} 12. Bf4 {[%emt 0:00:50]} b5 {[%emt 0:00:49]} 13. Bd3 {[%emt 0:00:40]} Qb6 {[%emt 0:00:32]} 14. Bxf5 {[%emt 0:02:22]} g6 {[%emt 0:01:34]} 15. Bh6+ {[%emt 0:01:44]} Ke7 {[%emt 0:00:03]} 16. Bg5+ {[%emt 0:00:02]} Kf8 {[%emt 0:00:00]} 17. Bh6+ {[%emt 0:00:19]} Ke7 {[%emt 0:00:01]} 18. Bg5+ {[%emt 0:00:00]} Kf8 {[%emt 0:00:01]} 19. Be4 {[%emt 0:00:00]} Nxe5 {[%emt 0:00:35]} 20. Nxc8 {[%emt 0:01:52]} Ng4+ {[%emt 0:00:15]} 21. Kg3 {[%emt 0:00:01]} Rxc8 {[%emt 0:00:01]} 22. Kxg4 {[%emt 0:00:16]} Qe6+ {[%emt 0:00:05]} 23. Kg3 {[%emt 0:00:16]} h6 {[%emt 0:02:06]} 24. Rhf1 {[%emt 0:01:42]} Kg7 {[%emt 0:00:06]} 25. Bf4 {[%emt 0:00:13]} Qxe4 {[%emt 0:00:25]} 26. Rae1 {[%emt 0:00:01]} Qxc2 {[%emt 0:00:07]} 27. Be5+ {[%emt 0:00:03]} Kg8 {[%emt 0:00:13]} 28. Nxd4 {[%emt 0:00:02]} Qxb2 {[%emt 0:00:25]} 29. Rf6 {[%emt 0:00:03]} Qc3+ {[%emt 0:00:32]} 30. Nf3 {[%emt 0:00:01]} Qd3 {[%emt 0:00:01]} 31. Rd6 {[%emt 0:00:02]} Qc2 {[%emt 0:00:12]} 32. Bxh8 {[%emt 0:00:03]} Kxh8 {[%emt 0:00:01]} 33. Rxd7 {[%emt 0:00:01]} a5 {[%emt 0:00:20]} 34. Ree7 {[%emt 0:00:01]} g5 {[%emt 0:00:00]} 35. h3 {[%emt 0:00:01]} Qf5 {[%emt 0:00:05]} 36. Rf7 {[%emt 0:00:01]} Qb1 {[%emt 0:00:12]} 37. Kh2 {[%emt 0:00:05]} Qb2 {[%emt 0:00:08]} 38. Rh7+ {[%emt 0:00:02]} Kg8 {[%emt 0:00:01]} 39. Rhe7 {[%emt 0:00:00]} Qf6 {[%emt 0:00:03]} 40. Re4 {[%emt 0:00:05]} Rf8 {[%emt 0:00:00]} 41. Red4 {[%emt 0:00:02]} Rf7 {[%emt 0:00:02]} 42. Rd8+ {[%emt 0:00:02]} Kg7 {[%emt 0:00:01]} 43. R8d6 {[%emt 0:00:00]} Qf5 {[%emt 0:00:03]} 44. R6d5 {[%emt 0:00:01]} Qe6 {[%emt 0:00:04]} 45. Re5 {[%emt 0:00:02]} Qf6 {[%emt 0:00:01]} 46. Rxb5 {[%emt 0:00:01]} a4 {[%emt 0:00:02]} 47. Rbd5 {[%emt 0:00:03]} a3 {[%emt 0:00:02]} 48. Rd6 {[%emt 0:00:01]} Qf5 {[%emt 0:00:01]} 49. Ra6 {[%emt 0:00:02]} Qc5 {[%emt 0:00:02]} 50. Rdd6 {[%emt 0:00:02]} Rxf3 {[%emt 0:00:02]} 51. gxf3 {[%emt 0:00:01]} Qf2+ {[%emt 0:00:01]} 52. Kh1 {[%emt 0:00:00]} Qxf3+ {[%emt 0:00:01]} 53. Kh2 {[%emt 0:00:01]} Qf2+ {[%emt 0:00:01]} 54. Kh1 {[%emt 0:00:00]} Qf1+ {[%emt 0:00:07]} 55. Kh2 {[%emt 0:00:01]} Qe2+ {[%emt 0:00:00]} 56. Kg1 {[%emt 0:00:01]} Qe3+ {[%emt 0:00:02]} 57. Kg2 {[%emt 0:00:00]} Qe2+ {[%emt 0:00:01]} 58. Kg1 {[%emt 0:00:01]} Qe1+ {[%emt 0:00:02]} 59. Kg2 {[%emt 0:00:01]} Qe2+ {[%emt 0:00:01]} 60. Kg1 {[%emt 0:00:00]} 1/2-1/2